bitfinex/quotes_BTCUSD_20240723
["timestamp","ask_amount","ask_price","bid_price","bid_amount"]
[1721736028064,0.00891826,66813.0,66812.0,0.10443086]
[1721736028266,0.00891826,66813.0,66812.0,0.25145077]
[1721736028715,0.00891826,66813.0,66812.0,0.25613192]
[1721736028885,0.08485142,66813.0,66812.0,0.25613192]
[1721736029083,0.18485142,66813.0,66812.0,0.25613192]
[1721736029284,0.08485142,66813.0,66812.0,0.25613192]
[1721736029465,0.03999533,66813.0,66812.0,0.25613192]
[1721736029660,0.00891826,66813.0,66812.0,0.28113192]
[1721736030122,0.00891826,66813.0,66812.0,0.26713192]
[1721736031104,0.00891826,66813.0,66812.0,0.26513192]
[1721736031508,0.00891826,66813.0,66812.0,0.27513192]
[1721736031731,0.00891826,66813.0,66812.0,0.16601991]
[1721736031909,0.00891826,66813.0,66812.0,0.27497569]
[1721736032115,0.00891826,66813.0,66812.0,0.26497569]
[1721736032312,0.00891826,66813.0,66812.0,0.27497569]
[1721736032634,0.0313002,66813.0,66812.0,0.26597569]
[1721736032833,0.0313002,66813.0,66812.0,0.14701991]
[1721736033036,0.0313002,66813.0,66812.0,0.16101991]
[1721736033233,0.0313002,66813.0,66812.0,0.15701991]
[1721736033680,0.0313002,66813.0,66812.0,0.28008309]
[1721736034866,0.0313002,66813.0,66812.0,0.26608309]
[1721736035039,0.0313002,66813.0,66812.0,0.26578135]
[1721736035656,0.0313002,66813.0,66812.0,0.27578135]
[1721736035893,0.00891826,66813.0,66812.0,0.27578135]
[1721736036060,0.00891826,66813.0,66812.0,0.16701991]
[1721736036272,0.00891826,66813.0,66812.0,0.28972102]
[1721736037187,0.00975826,66813.0,66812.0,0.28972102]
[1721736037607,0.00084,66813.0,66812.0,0.37262102]
[1721736037769,0.00084,66813.0,66812.0,0.43902102]
[1721736037971,0.00084,66813.0,66812.0,0.33031991]
[1721736038147,0.00084,66813.0,66812.0,0.43832427]
[1721736039882,0.00084,66813.0,66812.0,0.88734427]
[1721736040080,0.00084,66813.0,66812.0,0.87334427]
[1721736040489,0.00084,66813.0,66812.0,0.87334727]
[1721736040717,0.00084,66813.0,66812.0,1.18669427]
[1721736040893,0.00084,66813.0,66812.0,1.16669427]
[1721736041146,0.00084,66813.0,66812.0,1.04468991]
[1721736041335,0.00084,66813.0,66812.0,1.11802761]
[1721736041533,0.00084,66813.0,66812.0,1.43137461]
[1721736041707,0.00084,66813.0,66812.0,1.44537461]
[1721736042071,0.00084,66813.0,66812.0,1.74472161]
[1721736042492,0.00084,66813.0,66812.0,1.73072161]
[1721736042693,0.00084,66813.0,66812.0,1.74472161]
[1721736043114,0.00084,66813.0,66812.0,1.73072161]
[1721736043521,0.00084,66813.0,66812.0,1.74472161]
[1721736043924,0.00084,66813.0,66812.0,1.73072161]
[1721736044133,0.00084,66813.0,66812.0,1.81908352]
[1721736044342,0.00084,66813.0,66812.0,1.83308352]
[1721736044543,0.00084,66813.0,66812.0,1.84708352]
[1721736045168,0.00084,66813.0,66812.0,1.54773652]
[1721736045508,0.00084,66813.0,66812.0,1.4449019]
[1721736045704,0.00084,66813.0,66812.0,1.54773652]
[1721736046331,0.00084,66813.0,66812.0,1.84708352]
[1721736046557,0.00084,66813.0,66812.0,1.54773652]
[1721736046759,0.00084,66813.0,66812.0,1.94708352]
[1721736047209,0.00084,66813.0,66812.0,1.92470656]
[1721736047357,0.00084,66813.0,66812.0,2.23867504]
[1721736047730,0.00084,66813.0,66812.0,2.18867504]
[1721736048159,0.00084,66813.0,66812.0,1.97107504]
[1721736048959,0.00084,66813.0,66812.0,1.54872804]
[1721736049797,0.00084,66813.0,66812.0,1.44540139]
[1721736049993,0.00084,66813.0,66812.0,1.54872804]
[1721736050198,0.00084,66813.0,66812.0,1.44564632]
[1721736050394,0.00084,66813.0,66812.0,1.54920707]
[1721736050574,0.00084,66813.0,66812.0,1.44564632]
[1721736050783,0.00084,66813.0,66812.0,1.54920707]
[1721736051059,0.00084,66813.0,66812.0,1.14629932]
[1721736051433,0.00084,66813.0,66812.0,1.54920707]
[1721736051647,0.00084,66813.0,66812.0,1.44564632]
[1721736051775,0.00084,66813.0,66812.0,1.54920707]
[1721736051973,0.00084,66813.0,66812.0,1.44564632]
[1721736052199,0.00084,66813.0,66812.0,1.67269649]
[1721736052604,0.00084,66813.0,66812.0,1.89855407]
[1721736053123,0.00084,66813.0,66812.0,1.72138391]
[1721736053322,0.00084,66813.0,66812.0,1.54854546]
[1721736053750,0.00084,66813.0,66812.0,1.48742184]
[1721736053951,0.00084,66813.0,66812.0,1.54854546]
[1721736055121,0.00084,66813.0,66812.0,0.69694325]
[1721736055321,0.00084,66813.0,66812.0,0.54764325]
[1721736056292,0.00084,66813.0,66812.0,0.46036991]
[1721736056466,0.00084,66813.0,66812.0,0.53428304]
[1721736056669,0.00084,66813.0,66812.0,0.54828304]
[1721736057455,0.00084,66813.0,66812.0,0.53428304]
[1721736057851,0.00084,66813.0,66812.0,0.54828304]
[1721736060543,0.06554,66813.0,66812.0,0.54828304]
[1721736060741,0.06554,66813.0,66812.0,0.32735]
[1721736060742,0.080394,66813.0,66812.0,0.32735]
[1721736060989,0.285094,66813.0,66812.0,0.32735]
[1721736061194,0.80759642,66813.0,66812.0,0.32735]
[1721736061416,0.85759642,66813.0,66812.0,0.32735]
[1721736061618,0.85759642,66813.0,66812.0,0.29935]
[1721736061619,0.80759642,66813.0,66812.0,0.29935]
[1721736061831,1.31473842,66813.0,66812.0,0.29935]
[1721736062004,1.01539642,66813.0,66812.0,0.31935]
[1721736062213,1.02455197,66813.0,66812.0,0.31935]
[1721736062414,1.02455197,66813.0,66812.0,0.30635]
[1721736062707,1.02455197,66813.0,66812.0,0.30235]
[1721736062909,0.97455197,66813.0,66812.0,0.30235]
[1721736063140,1.02655197,66813.0,66812.0,0.30235]
[1721736063545,0.97655197,66813.0,66812.0,0.30235]
[1721736063694,1.02655197,66813.0,66812.0,0.30235]
[1721736064444,1.37589397,66813.0,66812.0,0.29935]
[1721736064583,1.02655197,66813.0,66812.0,0.29935]
[1721736064997,1.02455197,66813.0,66812.0,0.29935]
[1721736065198,1.02855197,66813.0,66812.0,0.29935]
[1721736065400,1.02855197,66813.0,66812.0,0.30035]
[1721736065601,1.02855197,66813.0,66812.0,0.29935]
[1721736065814,1.02455197,66813.0,66812.0,0.29935]
[1721736066020,1.02655197,66813.0,66812.0,0.30035]
[1721736066243,1.02955197,66813.0,66812.0,0.30035]
[1721736066665,1.02955197,66813.0,66812.0,0.29935]
[1721736066666,1.02655197,66813.0,66812.0,0.29935]
[1721736067073,1.03055197,66813.0,66812.0,0.29935]
[1721736067249,1.32989397,66813.0,66812.0,0.29935]
[1721736067451,1.03055197,66813.0,66812.0,0.29935]
[1721736067660,1.02855197,66813.0,66812.0,0.29935]
[1721736067870,0.90506255,66813.0,66812.0,0.29935]
[1721736068044,0.60572055,66813.0,66812.0,0.30035]
[1721736068249,0.59086655,66813.0,66812.0,0.29935]
[1721736068454,0.88620855,66813.0,66812.0,0.29935]
[1721736068655,0.93620855,66813.0,66812.0,0.29935]
[1721736068864,0.93620855,66813.0,66812.0,0.30035]
[1721736069061,0.93620855,66813.0,66812.0,0.29935]
[1721736069536,1.0861712,66813.0,66812.0,0.30135]
[1721736070167,1.0831712,66813.0,66812.0,0.30135]
[1721736070373,1.3825132,66813.0,66812.0,0.30135]
[1721736070575,1.4825132,66813.0,66812.0,0.30135]
[1721736070906,1.7818552,66813.0,66812.0,0.29935]
[1721736071312,1.87133841,66813.0,66812.0,0.22918326]
[1721736071542,1.87133841,66813.0,66812.0,0.22085819]
[1721736071543,1.7818552,66813.0,66812.0,0.22085819]
[1721736072089,1.89369551,66813.0,66812.0,0.22085819]
[1721736072467,1.7848552,66813.0,66812.0,0.22085819]
[1721736072874,1.7818552,66813.0,66812.0,0.19438419]
[1721736073277,1.89665367,66813.0,66812.0,0.19438419]
[1721736073476,1.89665367,66813.0,66812.0,0.09980291]
[1721736073477,1.85665112,66813.0,66812.0,0.09980291]
[1721736073703,1.056302,66800.0,66799.0,0.000924]
[1721736073898,1.515703,66800.0,66799.0,0.000924]
[1721736074100,1.615703,66800.0,66799.0,0.000924]
[1721736075978,1.617703,66800.0,66799.0,0.000924]
[1721736076261,1.318302,66800.0,66799.0,0.000924]
[1721736076477,1.41526465,66800.0,66799.0,0.000924]
[1721736076673,1.42326465,66800.0,66799.0,0.001924]
[1721736077133,0.4325,66800.0,66799.0,0.000924]
[1721736077348,0.731901,66800.0,66799.0,0.000924]
[1721736077551,0.739901,66800.0,66799.0,0.001924]
[1721736077768,0.58746265,66800.0,66799.0,0.001924]
[1721736077980,0.27996265,66800.0,66799.0,0.001924]
[1721736078183,0.27796265,66800.0,66799.0,0.001924]
[1721736078386,0.135,66800.0,66799.0,0.001924]
[1721736078591,0.035,66800.0,66799.0,0.001924]
[1721736078798,0.031,66800.0,66799.0,0.001924]
[1721736079204,0.031,66800.0,66799.0,0.003924]
[1721736079405,0.33835166,66800.0,66799.0,0.003924]
[1721736079609,0.28865166,66800.0,66799.0,0.001924]
[1721736079933,0.43735166,66800.0,66799.0,0.005924]
[1721736080160,0.580795,66800.0,66799.0,0.005924]
[1721736080363,0.880196,66800.0,66799.0,0.005924]
[1721736080604,0.88938241,66800.0,66799.0,0.005924]
[1721736080818,1.09718241,66800.0,66799.0,0.005924]
[1721736081022,1.14718241,66800.0,66799.0,0.005924]
[1721736081225,1.02369299,66800.0,66799.0,0.005924]
[1721736081427,0.97369299,66800.0,66799.0,0.005924]
[1721736082323,0.97369299,66800.0,66799.0,0.000924]
[1721736082324,0.71729199,66800.0,66799.0,0.000924]
[1721736082458,1.06669299,66800.0,66799.0,0.000924]
[1721736082640,1.08169299,66800.0,66799.0,0.000924]
[1721736082840,1.03169299,66800.0,66799.0,0.000924]
[1721736083085,1.08169299,66800.0,66799.0,0.000924]
[1721736083414,1.41609399,66800.0,66799.0,0.000924]
[1721736083932,1.71549499,66800.0,66799.0,0.000924]
[1721736084334,1.71749499,66800.0,66799.0,0.000924]
[1721736085562,1.71549499,66800.0,66799.0,0.000924]
[1721736085927,1.72849499,66800.0,66799.0,0.002]
[1721736086383,1.71849499,66800.0,66799.0,0.002]
[1721736086582,1.71849499,66800.0,66799.0,0.00086401]
[1721736086583,2.08740498,66800.0,66799.0,0.00086401]
[1721736086843,2.08740498,66800.0,66784.0,0.009273]
[1721736086844,1.19798,66793.0,66784.0,0.009273]
[1721736087039,1.69390142,66793.0,66784.0,0.009273]
[1721736087389,1.15287,66785.0,66784.0,0.009273]
[1721736087591,1.27587,66785.0,66784.0,0.009273]
[1721736088173,1.99973951,66785.0,66784.0,0.009273]
[1721736088393,1.99973951,66785.0,66782.0,0.00197208]
[1721736088394,1.056492,66783.0,66782.0,0.00197208]
[1721736088608,1.079492,66783.0,66782.0,0.00197208]
[1721736088811,0.830015,66783.0,66782.0,0.00197208]
[1721736089038,0.430538,66783.0,66782.0,0.00197208]
[1721736089241,0.780015,66783.0,66782.0,0.00197208]
[1721736089449,0.97697765,66783.0,66782.0,0.00197208]
[1721736089769,0.98697765,66783.0,66782.0,0.00197208]
[1721736089968,1.03697765,66783.0,66782.0,0.00197208]
[1721736090169,1.29345465,66783.0,66782.0,0.00297208]
[1721736090381,1.28345465,66783.0,66782.0,0.00297208]
[1721736090569,1.28545465,66783.0,66782.0,0.00297208]
[1721736090769,1.33545465,66783.0,66782.0,0.00297208]
[1721736091182,1.63493165,66783.0,66782.0,0.00297208]
[1721736091599,1.70083165,66783.0,66782.0,0.00297208]
[1721736092002,1.69883165,66783.0,66782.0,0.00297208]
[1721736092227,1.69183165,66783.0,66782.0,0.00197208]
[1721736092398,1.84288937,66783.0,66782.0,0.00197208]
[1721736092592,1.84288937,66783.0,66782.0,0.00397208]
[1721736092790,0.199761,66773.0,66770.0,0.009273]
[1721736092997,1.32144999,66773.0,66770.0,0.009273]
[1721736094128,1.3656369,66773.0,66770.0,0.009273]
[1721736094300,1.66141391,66773.0,66770.0,0.009273]
[1721736094551,1.405048,66773.0,66770.0,0.009273]
[1721736094754,1.85153265,66773.0,66770.0,0.009273]
[1721736095553,1.85253265,66773.0,66772.0,0.015273]
[1721736095754,1.55301065,66773.0,66772.0,0.015273]
[1721736095960,1.55301065,66773.0,66772.0,0.009273]
[1721736096157,1.85253265,66773.0,66772.0,0.009273]
[1721736096410,1.85953265,66773.0,66772.0,0.010273]
[1721736096691,1.85853265,66773.0,66772.0,0.009273]
[1721736096888,1.86753265,66773.0,66772.0,0.010273]
[1721736097304,1.86053265,66773.0,66772.0,0.010273]
[1721736097560,1.87053265,66773.0,66772.0,0.010273]
[1721736097773,1.87653265,66773.0,66772.0,0.011273]
[1721736098014,1.56701065,66773.0,66772.0,0.011273]
[1721736098201,1.56701065,66773.0,66771.0,0.00222093]
[1721736098202,0.757089,66772.0,66771.0,0.00222093]
[1721736098363,0.345143,66772.0,66771.0,0.14122093]
[1721736098540,0.2578,66772.0,66771.0,0.14122093]
[1721736098751,0.028,66773.0,66771.0,0.14122093]
[1721736098969,0.0371441,66773.0,66771.0,0.14122093]
[1721736099159,0.002794,66772.0,66771.0,0.14122093]
[1721736100133,0.036794,66772.0,66771.0,0.14122093]
[1721736100341,0.034,66772.0,66771.0,0.14122093]
[1721736100546,0.03839381,66772.0,66771.0,0.14122093]
[1721736100925,0.04039381,66772.0,66771.0,0.14122093]
[1721736101152,0.04039381,66772.0,66771.0,0.14322093]
[1721736102108,0.002,66772.0,66771.0,0.29024084]
[1721736102319,0.002794,66776.0,66775.0,0.149756]
[1721736102534,0.44093655,66803.0,66784.0,0.529008]
[1721736102774,0.44093655,66803.0,66784.0,0.28781991]
[1721736103050,0.44093655,66803.0,66784.0,0.73702791]
[1721736103325,0.2078,66802.0,66784.0,0.28781991]
[1721736103596,0.0493359,66798.0,66784.0,0.28781991]
[1721736103828,0.0493359,66798.0,66784.0,0.43755591]
[1721736104067,0.0493359,66798.0,66784.0,0.28781991]
[1721736104068,0.5246359,66798.0,66784.0,0.28781991]
[1721736104317,0.5246359,66798.0,66784.0,0.89509991]
[1721736104318,0.001,66785.0,66784.0,0.89509991]
[1721736104581,0.001,66785.0,66784.0,0.68247285]
[1721736104840,0.002794,66797.0,66786.0,0.0663]
[1721736105108,0.002794,66797.0,66787.0,0.14641991]
[1721736105336,0.06248964,66796.0,66787.0,0.14631991]
[1721736106085,0.5246359,66798.0,66793.0,0.06]
[1721736106344,0.5246359,66798.0,66794.0,0.14701991]
[1721736106577,0.4753,66798.0,66794.0,0.14691991]
[1721736107534,0.1,66797.0,66794.0,0.14691991]
[1721736107760,0.1,66797.0,66794.0,0.15091991]
[1721736108581,0.1,66797.0,66794.0,0.14691991]
[1721736108980,0.001,66798.0,66795.0,0.0805]
[1721736109241,0.001,66798.0,66796.0,0.14701991]
[1721736109453,0.001,66798.0,66795.0,0.0805]
[1721736109925,0.1578,66802.0,66795.0,0.0805]
[1721736109926,0.01688,66797.0,66795.0,0.0805]
[1721736110129,0.023,66796.0,66795.0,0.0805]
[1721736110767,0.023,66796.0,66795.0,0.0825]
[1721736111012,0.023,66796.0,66795.0,0.0865]
[1721736111213,0.023,66796.0,66795.0,0.006]
[1721736111387,0.0373674,66796.0,66793.0,0.0599]
[1721736111623,0.0373674,66796.0,66793.0,0.20691991]
[1721736111823,0.0373674,66796.0,66795.0,0.005]
[1721736111824,0.0393674,66796.0,66795.0,0.005]
[1721736113216,0.0393674,66796.0,66793.0,0.20691991]
[1721736113217,0.0373674,66796.0,66793.0,0.20691991]
[1721736113420,0.0383674,66796.0,66795.0,0.002]
[1721736113626,0.0393674,66796.0,66795.0,0.006]
[1721736113806,0.0373674,66796.0,66793.0,0.20691991]
[1721736114002,0.002794,66795.0,66793.0,0.20691991]
[1721736115071,0.04837353,66796.0,66793.0,0.20891991]
[1721736115275,0.04737353,66796.0,66793.0,0.20891991]
[1721736115702,0.04737353,66796.0,66793.0,0.14901991]
[1721736115703,0.002794,66795.0,66793.0,0.14901991]
[1721736116310,0.002794,66795.0,66793.0,0.14701991]
[1721736116728,0.001,66795.0,66793.0,0.14901991]
[1721736116969,0.004794,66795.0,66793.0,0.15301991]
[1721736117200,0.001,66795.0,66793.0,0.15101991]
[1721736117413,0.002,66795.0,66793.0,0.15301991]
[1721736117839,0.001,66795.0,66793.0,0.14901991]
[1721736118285,0.002,66795.0,66793.0,0.15301991]
[1721736119689,0.07628342,66794.0,66793.0,0.006]
[1721736119930,0.13707349,66794.0,66793.0,0.006]
[1721736120117,0.26007349,66794.0,66793.0,0.006]
[1721736120355,0.18658407,66794.0,66793.0,0.006]
[1721736120684,0.18658407,66794.0,66793.0,0.004]
[1721736120906,0.18758407,66794.0,66793.0,0.006]
[1721736121285,0.18758407,66794.0,66793.0,0.002]
[1721736121507,0.08658407,66794.0,66784.0,0.0641]
[1721736121713,0.08658407,66794.0,66785.0,0.14701991]
[1721736121714,0.16151242,66793.0,66785.0,0.14701991]
[1721736121919,0.06151242,66793.0,66785.0,0.14701991]
[1721736123626,0.00374351,66792.0,66785.0,0.14701991]
[1721736123831,0.002794,66791.0,66785.0,0.14701991]
[1721736124032,0.025794,66791.0,66785.0,0.14701991]
[1721736124241,0.00892559,66790.0,66785.0,0.14701991]
[1721736124416,0.002794,66789.0,66785.0,0.14701991]
[1721736125074,0.002794,66789.0,66785.0,0.14901991]
[1721736125292,0.002794,66789.0,66785.0,0.15301991]
[1721736125416,0.002794,66789.0,66785.0,0.15101991]
[1721736125656,0.002794,66789.0,66785.0,0.14701991]
[1721736125874,0.003794,66789.0,66785.0,0.14901991]
[1721736127289,0.004794,66789.0,66785.0,0.15301991]
[1721736127698,0.00761815,66788.0,66785.0,0.15301991]
[1721736128181,0.0267435,66787.0,66785.0,0.006]
[1721736128397,0.002794,66786.0,66785.0,0.006]
[1721736128613,0.002794,66786.0,66785.0,0.004]
[1721736128835,0.07638928,66786.0,66785.0,0.004]
[1721736129078,0.39912028,66786.0,66785.0,0.002]
[1721736129279,0.19938928,66786.0,66785.0,0.002]
[1721736129528,0.125794,66786.0,66785.0,0.002]
[1721736129710,0.1,66786.0,66785.0,0.28941991]
[1721736129863,0.001,66788.0,66785.0,0.28941991]
[1721736130064,0.001,66788.0,66786.0,0.23634713]
[1721736130264,0.001,66788.0,66787.0,0.08932722]
[1721736130567,0.001,66788.0,66787.0,0.23634713]
[1721736130982,0.00923869,66789.0,66787.0,0.23634713]
[1721736131238,0.002794,66797.0,66788.0,0.23634713]
[1721736131442,0.002794,66797.0,66789.0,0.08932722]
[1721736131443,0.002794,66795.0,66789.0,0.08932722]
[1721736131651,0.025794,66795.0,66790.0,0.23634713]
[1721736131873,0.125794,66795.0,66791.0,0.08932722]
[1721736132086,0.002794,66793.0,66790.0,0.14701991]
[1721736132258,0.002794,66793.0,66791.0,0.08918813]
[1721736132512,0.52486819,66799.0,66792.0,0.37570804]
[1721736132513,0.00922616,66797.0,66792.0,0.37570804]
[1721736132675,0.52486819,66799.0,66794.0,0.1431]
[1721736132923,0.04956819,66799.0,66795.0,0.23618026]
[1721736133132,0.0092008,66805.0,66796.0,0.08916035]
[1721736133342,0.0092008,66805.0,66797.0,0.23618026]
[1721736133551,0.002794,66809.0,66798.0,0.08916035]
[1721736133759,0.01163339,66809.0,66799.0,0.23618026]
[1721736133960,0.01163339,66809.0,66800.0,0.08916035]
[1721736134195,0.002794,66807.0,66801.0,0.23618026]
[1721736134397,0.002794,66807.0,66802.0,0.08916035]
[1721736134507,0.002794,66807.0,66803.0,0.23618026]
[1721736134715,0.002794,66807.0,66804.0,0.08916035]
[1721736134916,0.06908467,66806.0,66805.0,0.14701991]
[1721736135561,0.002794,66808.0,66805.0,0.14701991]
[1721736135832,0.025794,66808.0,66805.0,0.14701991]
[1721736136534,0.002794,66808.0,66805.0,0.14701991]
[1721736136755,0.002794,66808.0,66806.0,0.1491]
[1721736136962,0.002794,66809.0,66807.0,0.2354305]
[1721736137169,0.00084,66813.0,66808.0,0.08841059]
[1721736137374,0.00084,66813.0,66806.0,0.1491]
[1721736137375,0.00982922,66813.0,66809.0,0.2354305]
[1721736137582,0.00982922,66813.0,66810.0,0.08841059]
[1721736137786,0.00084,66813.0,66811.0,0.2354305]
[1721736137912,0.00084,66813.0,66812.0,0.08841059]
[1721736138117,0.00084,66813.0,66812.0,0.2354305]
[1721736138552,0.00284,66813.0,66812.0,0.2354305]
[1721736138901,0.00184,66813.0,66812.0,0.2354305]
[1721736139010,0.00084,66813.0,66812.0,0.23570122]
[1721736139205,0.01944339,66813.0,66812.0,0.23570122]
[1721736139512,0.00184,66813.0,66812.0,0.008]
[1721736139704,0.02484,66813.0,66812.0,0.008]
[1721736140342,0.02484,66813.0,66812.0,0.018]
[1721736140559,0.00184,66813.0,66812.0,0.018]
[1721736140790,0.02484,66813.0,66812.0,0.018]
[1721736140989,0.02484,66813.0,66812.0,0.31735]
[1721736141226,0.00184,66813.0,66812.0,0.31735]
[1721736141439,0.00184,66813.0,66812.0,0.46436991]
[1721736141671,0.00184,66813.0,66812.0,0.60446991]
[1721736141882,0.00184,66813.0,66812.0,1.44166667]
[1721736142150,0.00184,66813.0,66812.0,1.65218391]
[1721736142389,0.00184,66813.0,66812.0,1.74159455]
[1721736142565,0.00184,66813.0,66812.0,1.74158422]
[1721736142772,0.00084,66813.0,66812.0,1.73358371]
[1721736143608,0.00084,66813.0,66812.0,1.72358371]
[1721736144023,0.00084,66813.0,66812.0,1.73758371]
[1721736144222,0.00084,66813.0,66812.0,1.83758371]
[1721736144940,0.025,66828.0,66819.0,1.097606]
[1721736145148,0.025,66828.0,66827.0,0.49892]
[1721736145354,0.025,66828.0,66827.0,2.08860215]
[1721736145567,0.025,66828.0,66827.0,2.47667252]
[1721736146123,0.025,66828.0,66827.0,1.93860215]
[1721736146328,0.025,66828.0,66827.0,1.42172215]
[1721736147080,0.025,66828.0,66827.0,1.72100215]
[1721736147200,0.025,66828.0,66827.0,1.77100215]
[1721736147890,0.025,66828.0,66827.0,1.72100215]
[1721736148144,0.025,66828.0,66827.0,1.7353923]
[1721736148443,0.025,66828.0,66827.0,1.8353923]
[1721736148622,0.025,66828.0,66827.0,1.7853923]
[1721736148851,0.025,66828.0,66827.0,1.8853923]
[1721736149067,0.025,66828.0,66827.0,2.1169923]
[1721736149493,0.025,66828.0,66827.0,2.4022723]
[1721736149726,0.025,66828.0,66827.0,2.4162723]
[1721736150304,0.00064995,66849.0,66827.0,2.4162723]
[1721736150305,0.00064995,66849.0,66832.0,1.640456]
[1721736150454,0.00064995,66849.0,66832.0,2.63025289]
[1721736151062,0.00064995,66849.0,66832.0,2.62946545]
[1721736152457,0.00084,66833.0,66832.0,2.65746545]
[1721736152608,0.00084,66833.0,66832.0,2.75746545]
[1721736153784,0.00084,66833.0,66832.0,2.6697405]
[1721736153990,0.00084,66833.0,66832.0,2.75736566]
[1721736154200,0.00084,66833.0,66832.0,2.75736637]
[1721736155757,0.00084,66833.0,66832.0,2.76579637]
[1721736155975,0.00084,66833.0,66832.0,2.3789135]
[1721736157438,0.00084,66833.0,66832.0,2.37816034]
[1721736157591,0.00084,66833.0,66832.0,2.42348103]
[1721736157784,0.00084,66833.0,66832.0,2.46769238]
[1721736158216,0.00084,66833.0,66832.0,2.71848103]
[1721736158368,0.00084,66833.0,66832.0,2.67316034]
[1721736158782,0.00084,66833.0,66832.0,3.01773803]
[1721736159426,0.00084,66833.0,66832.0,3.06194938]
[1721736159841,0.00084,66833.0,66832.0,3.01773803]
[1721736160248,0.00084,66833.0,66832.0,3.06194938]
[1721736160477,0.00084,66833.0,66832.0,3.06195347]
[1721736160832,0.00084,66833.0,66832.0,3.56195347]
[1721736162174,0.00084,66833.0,66832.0,3.51774212]
[1721736162331,0.00084,66833.0,66832.0,3.56195347]
[1721736162525,0.00084,66833.0,66832.0,3.51774212]
[1721736162870,0.00084,66833.0,66832.0,3.56195347]
[1721736163008,0.00084,66833.0,66832.0,3.51774212]
[1721736163208,0.00084,66833.0,66832.0,3.71269647]
[1721736163476,0.00084,66833.0,66832.0,3.71848512]
[1721736163734,0.00084,66833.0,66832.0,3.67343654]
[1721736163939,0.00084,66833.0,66832.0,3.12343654]
[1721736164154,0.00084,66833.0,66832.0,3.62343654]
[1721736164370,0.00084,66833.0,66832.0,3.67343654]
[1721736165211,0.00064995,66849.0,66845.0,0.149599]
[1721736165419,0.00064995,66849.0,66848.0,0.14701991]
[1721736165591,0.00064995,66849.0,66848.0,0.44620991]
[1721736167698,0.00064995,66849.0,66848.0,0.46020991]
[1721736167901,0.00064995,66849.0,66848.0,0.47420991]
[1721736169848,0.00064995,66849.0,66848.0,0.62380291]
[1721736170193,0.00064995,66849.0,66848.0,0.71189661]
[1721736170829,0.00064995,66849.0,66848.0,0.56230361]
[1721736172932,0.00064995,66849.0,66848.0,0.47420991]
[1721736173156,0.00064995,66849.0,66848.0,0.56187473]
[1721736178559,0.13994995,66849.0,66848.0,0.56187473]
[1721736180484,0.00064995,66849.0,66848.0,0.56187473]
[1721736182044,0.13974995,66849.0,66848.0,0.56187473]
[1721736182474,0.13974995,66849.0,66848.0,0.56258913]
[1721736183106,0.13974995,66849.0,66848.0,0.54858913]
[1721736183530,0.13974995,66849.0,66848.0,0.54658913]
[1721736183954,0.13974995,66849.0,66848.0,0.56058913]
[1721736184167,0.13974995,66849.0,66848.0,0.47220991]
[1721736184795,0.14885459,66849.0,66848.0,0.47220991]
[1721736187259,0.14885459,66849.0,66848.0,0.56111317]
[1721736187672,0.14885459,66849.0,66848.0,0.47220991]
[1721736187879,0.00064995,66849.0,66848.0,0.56112794]
[1721736188458,0.00064995,66849.0,66848.0,0.56112562]
[1721736189068,0.00064995,66849.0,66848.0,0.54912562]
[1721736189475,0.00064995,66849.0,66848.0,0.56312562]
[1721736191551,0.00064995,66849.0,66848.0,0.56275223]
[1721736192067,0.00064995,66849.0,66848.0,0.54875223]
[1721736192407,0.00064995,66849.0,66848.0,0.56275223]
[1721736192581,0.00064995,66849.0,66848.0,0.70275223]
[1721736192986,0.00064995,66849.0,66848.0,0.68875223]
[1721736193377,0.00064995,66849.0,66848.0,0.70275223]
[1721736193976,0.00064995,66849.0,66848.0,0.56275223]
[1721736194278,0.00064995,66849.0,66848.0,0.54875223]
[1721736194479,0.00064995,66849.0,66848.0,0.56275223]
[1721736194724,0.00064995,66849.0,66848.0,0.57464594]
[1721736195764,0.00064995,66849.0,66848.0,0.70726601]
[1721736196049,0.00064995,66849.0,66848.0,0.67926601]
[1721736196251,0.00064995,66849.0,66848.0,0.69696083]
[1721736196468,0.00064995,66849.0,66848.0,0.71096083]
[1721736196666,0.00064995,66849.0,66848.0,0.57834074]
[1721736197034,0.00064995,66849.0,66848.0,0.67054074]
[1721736197243,0.00064995,66849.0,66848.0,0.78131617]
[1721736197438,0.00064995,66849.0,66848.0,0.79531617]
[1721736197652,0.00064995,66849.0,66848.0,0.84351617]
[1721736197856,0.00064995,66849.0,66848.0,0.81551617]
[1721736198011,0.00064995,66849.0,66848.0,0.82150017]
[1721736199487,0.00064995,66849.0,66848.0,0.83550017]
[1721736200029,0.00064995,66849.0,66848.0,0.84950017]
[1721736200537,0.00064995,66849.0,66848.0,0.83550017]
[1721736201164,0.00064995,66849.0,66848.0,0.84849613]
[1721736201779,0.00064995,66849.0,66848.0,0.99808913]
[1721736201979,0.00064995,66849.0,66848.0,0.84849613]
[1721736202177,0.00064995,66849.0,66848.0,0.99808913]
[1721736203356,0.00270395,66858.0,66848.0,0.99808913]
[1721736203561,0.00270395,66858.0,66851.0,0.14701991]
[1721736203734,0.00270395,66858.0,66852.0,0.39466476]
[1721736203914,0.00270395,66858.0,66853.0,0.24251467]
[1721736204117,0.00270395,66858.0,66854.0,0.39465476]
[1721736204319,0.07267148,66859.0,66855.0,0.14701991]
[1721736204523,0.07267148,66859.0,66856.0,0.39455375]
[1721736204773,0.07267148,66859.0,66857.0,0.24242366]
[1721736204921,0.07267148,66859.0,66858.0,0.39454375]
[1721736205128,0.07267148,66859.0,66858.0,0.54156366]
[1721736207164,0.07267148,66859.0,66858.0,0.55556366]
[1721736207443,0.07267148,66859.0,66858.0,0.56556366]
[1721736207667,0.07267148,66859.0,66858.0,0.56529272]
[1721736207842,0.07267148,66859.0,66858.0,0.57929272]
[1721736207978,0.07267148,66859.0,66858.0,0.56929272]
[1721736208545,0.21971499,66860.0,66858.0,0.56929272]
[1721736208751,0.21971499,66860.0,66859.0,0.24215272]
[1721736208972,0.21971499,66860.0,66859.0,0.54129272]
[1721736210566,0.15381556,66860.0,66859.0,0.55528674]
[1721736210762,0.05381556,66860.0,66859.0,0.56528674]
[1721736211429,0.04485767,66860.0,66859.0,0.56528674]
[1721736211597,0.00843,66861.0,66859.0,0.56528674]
[1721736211959,0.00843,66861.0,66860.0,0.09512683]
[1721736212160,0.00843,66861.0,66860.0,0.54127674]